[Event "*** Qualifier 3: Titled Tuesday 3|2 Blitz"]
[Site "Chess.com"]
[Date "2017.04.18"]
[Round "1"]
[White "cailinchetty"]
[Black "GamayevOleg"]
[Result "0-1"]
[WhiteElo "1936"]
[BlackElo "2402"]
[TimeControl "180+2"]
[EndTime "13:03:16 PDT"]
[Termination "GamayevOleg won by resignation"]

1. e4 {[%clk 0:03:00.6]} 1... d6 {[%clk 0:03:01.3]} 2. d4 {[%clk 0:03:01.1]}
2... Nf6 {[%clk 0:03:02.7]} 3. f3 {[%clk 0:03:01.8]} 3... e5 {[%clk 0:03:03.9]}
4. Be3 {[%clk 0:03:03.4]} 4... Be7 {[%clk 0:03:04.7]} 5. d5 {[%clk 0:03:03.9]}
5... c6 {[%clk 0:03:05.5]} 6. c4 {[%clk 0:03:05.4]} 6... cxd5 {[%clk 0:03:06.8]}
7. cxd5 {[%clk 0:03:06.8]} 7... O-O {[%clk 0:03:08.3]} 8. Nc3 {[%clk 0:03:08.3]}
8... Nfd7 {[%clk 0:03:09.5]} 9. Qb3 {[%clk 0:03:08.2]} 9... Bg5 {[%clk
0:03:07.6]} 10. Bf2 {[%clk 0:03:07.2]} 10... a5 {[%clk 0:03:06.5]} 11. Bb5
{[%clk 0:03:08.3]} 11... Na6 {[%clk 0:03:07.1]} 12. Bxa6 {[%clk 0:03:07.5]}
12... bxa6 {[%clk 0:03:04.2]} 13. Nge2 {[%clk 0:03:08.2]} 13... Rb8 {[%clk
0:03:05.4]} 14. Qc2 {[%clk 0:03:08.3]} 14... f5 {[%clk 0:02:59.2]} 15. O-O
{[%clk 0:03:08.4]} 15... Nb6 {[%clk 0:02:57]} 16. b3 {[%clk 0:03:05.7]} 16...
Bd7 {[%clk 0:02:57.2]} 17. Qb2 {[%clk 0:03:04.8]} 17... Bb5 {[%clk 0:02:56.6]}
18. Nxb5 {[%clk 0:03:02.2]} 18... axb5 {[%clk 0:02:58.5]} 19. Nc3 {[%clk
0:03:03]} 19... Qd7 {[%clk 0:02:59]} 20. Qe2 {[%clk 0:03:02.3]} 20... b4 {[%clk
0:02:59.2]} 21. Nd1 {[%clk 0:03:01.4]} 21... fxe4 {[%clk 0:02:57.9]} 22. fxe4
{[%clk 0:03:02.1]} 22... Qc7 {[%clk 0:02:54.5]} 23. Nb2 {[%clk 0:03:02.9]} 23...
Rbc8 {[%clk 0:02:49.9]} 24. h4 {[%clk 0:03:03.3]} 24... Bh6 {[%clk 0:02:46.1]}
25. g4 {[%clk 0:03:04.1]} 25... Bf4 {[%clk 0:02:46.3]} 26. Nd3 {[%clk
0:03:05.4]} 26... Nd7 {[%clk 0:02:41.8]} 27. Nxf4 {[%clk 0:03:06]} 27... exf4
{[%clk 0:02:43.7]} 28. Qd2 {[%clk 0:03:04.2]} 28... Ne5 {[%clk 0:02:42.9]} 29.
Kg2 {[%clk 0:02:57.1]} 29... Nxg4 {[%clk 0:02:41.8]} 30. Kg1 {[%clk 0:02:58.6]}
30... Ne5 {[%clk 0:02:42.1]} 31. Kg2 {[%clk 0:02:59.2]} 31... Qd7 {[%clk
0:02:43.1]} 32. Qd1 {[%clk 0:02:58.7]} 32... Rc3 {[%clk 0:02:41.4]} 33. Qh5
{[%clk 0:02:57.7]} 33... Qh3+ {[%clk 0:02:40.8]} 34. Kg1 {[%clk 0:02:58.3]}
34... Nf3+ {[%clk 0:02:42.1]} 0-1

[Event "*** Qualifier 3: Titled Tuesday 3|2 Blitz"]
[Site "Chess.com"]
[Date "2017.04.18"]
[Round "1"]
[White "JoachimBN"]
[Black "djano"]
[Result "1-0"]
[WhiteElo "2654"]
[BlackElo "2336"]
[TimeControl "180+2"]
[EndTime "13:03:40 PDT"]
[Termination "JoachimBN won by resignation"]

1. c4 {[%clk 0:03:01.5]} 1... e6 {[%clk 0:02:58.4]} 2. Nc3 {[%clk 0:03:03]} 2...
f5 {[%clk 0:02:56.4]} 3. d4 {[%clk 0:03:01.6]} 3... Nf6 {[%clk 0:02:56.2]} 4. e3
{[%clk 0:02:55.3]} 4... Bb4 {[%clk 0:02:54]} 5. Bd3 {[%clk 0:02:54.6]} 5... O-O
{[%clk 0:02:54.6]} 6. Ne2 {[%clk 0:02:54.4]} 6... b6 {[%clk 0:02:55.7]} 7. O-O
{[%clk 0:02:52.3]} 7... Bb7 {[%clk 0:02:56.2]} 8. a3 {[%clk 0:02:50.5]} 8... Be7
{[%clk 0:02:56.6]} 9. b4 {[%clk 0:02:48.5]} 9... Qe8 {[%clk 0:02:53.6]} 10. f3
{[%clk 0:02:47]} 10... d6 {[%clk 0:02:48.5]} 11. Nf4 {[%clk 0:02:43.7]} 11...
Bd8 {[%clk 0:02:47]} 12. d5 {[%clk 0:02:44.8]} 12... exd5 {[%clk 0:02:31.6]} 13.
cxd5 {[%clk 0:02:46.7]} 13... Qe5 {[%clk 0:02:15.6]} 14. Bd2 {[%clk 0:02:43.3]}
14... Nxd5 {[%clk 0:02:06.2]} 15. Qb3 {[%clk 0:02:42.4]} 15... c6 {[%clk
0:02:05.1]} 16. b5 {[%clk 0:02:43.8]} 16... Kh8 {[%clk 0:02:01.3]} 17. bxc6
{[%clk 0:02:42]} 17... Bxc6 {[%clk 0:01:29.4]} 18. Ncxd5 {[%clk 0:02:42.5]}
18... Nd7 {[%clk 0:01:29.2]} 19. Bc3 {[%clk 0:02:37.5]} 19... Qxe3+ {[%clk
0:01:28.2]} 20. Nxe3 {[%clk 0:02:37.7]} 1-0

[Event "*** Qualifier 3: Titled Tuesday 3|2 Blitz"]
[Site "Chess.com"]
[Date "2017.04.18"]
[Round "1"]
[White "saraswathii"]
[Black "TomsKantans"]
[Result "0-1"]
[WhiteElo "2233"]
[BlackElo "2526"]
[TimeControl "180+2"]
[EndTime "13:03:55 PDT"]
[Termination "TomsKantans won by resignation"]

1. e4 {[%clk 0:02:58.8]} 1... c5 {[%clk 0:03:00.1]} 2. Nf3 {[%clk 0:02:57.9]}
2... Nf6 {[%clk 0:03:00.9]} 3. d3 {[%clk 0:02:57.9]} 3... Nc6 {[%clk 0:03:01.1]}
4. g3 {[%clk 0:02:59.3]} 4... g6 {[%clk 0:03:02]} 5. Bg2 {[%clk 0:03:00.6]} 5...
Bg7 {[%clk 0:03:03.6]} 6. O-O {[%clk 0:03:02.2]} 6... O-O {[%clk 0:03:04.9]} 7.
Qe2 {[%clk 0:03:00.1]} 7... e5 {[%clk 0:03:01.8]} 8. c3 {[%clk 0:02:59.5]} 8...
Re8 {[%clk 0:03:01.2]} 9. a3 {[%clk 0:02:59.6]} 9... h6 {[%clk 0:02:58.9]} 10.
h4 {[%clk 0:02:56.8]} 10... d5 {[%clk 0:02:58.4]} 11. exd5 {[%clk 0:02:55.1]}
11... Nxd5 {[%clk 0:02:58.9]} 12. Nbd2 {[%clk 0:02:55.1]} 12... Bg4 {[%clk
0:02:58.8]} 13. Nc4 {[%clk 0:02:51.1]} 13... Qd7 {[%clk 0:02:56.9]} 14. Ne3
{[%clk 0:02:42.5]} 14... Nxe3 {[%clk 0:02:55.7]} 15. Bxe3 {[%clk 0:02:36.2]}
15... b6 {[%clk 0:02:56.3]} 16. Rad1 {[%clk 0:02:23.4]} 16... Rac8 {[%clk
0:02:50.2]} 17. Qd2 {[%clk 0:02:11.6]} 17... Kh7 {[%clk 0:02:47.9]} 18. Qc2
{[%clk 0:01:40.3]} 18... Qf5 {[%clk 0:02:46.3]} 19. Qe2 {[%clk 0:01:35.8]} 19...
Re6 {[%clk 0:02:42]} 0-1

[Event "*** Qualifier 3: Titled Tuesday 3|2 Blitz"]
[Site "Chess.com"]
[Date "2017.04.18"]
[Round "1"]
[White "GMHess"]
[Black "MartinMatthiesen"]
[Result "1-0"]
[WhiteElo "2519"]
[BlackElo "2234"]
[TimeControl "180+2"]
[EndTime "13:04:39 PDT"]
[Termination "GMHess won by resignation"]

1. b3 {[%clk 0:03:02]} 1... e5 {[%clk 0:02:59.8]} 2. Bb2 {[%clk 0:03:02.6]} 2...
Nc6 {[%clk 0:03:00.4]} 3. e3 {[%clk 0:03:04.1]} 3... Nf6 {[%clk 0:02:55.3]} 4.
Bb5 {[%clk 0:03:04.4]} 4... Bd6 {[%clk 0:02:53.6]} 5. Ne2 {[%clk 0:03:05.6]}
5... O-O {[%clk 0:02:53.2]} 6. Ng3 {[%clk 0:03:06.5]} 6... Re8 {[%clk
0:02:48.8]} 7. O-O {[%clk 0:03:06.8]} 7... Bf8 {[%clk 0:02:44.2]} 8. e4 {[%clk
0:03:04.4]} 8... d6 {[%clk 0:02:21.6]} 9. h3 {[%clk 0:02:55.7]} 9... a6 {[%clk
0:02:00.5]} 10. Bxc6 {[%clk 0:02:56.7]} 10... bxc6 {[%clk 0:02:01.1]} 11. d3
{[%clk 0:02:58.3]} 11... Nd7 {[%clk 0:01:49]} 12. Nd2 {[%clk 0:02:55.8]} 12...
Nc5 {[%clk 0:01:48.2]} 13. f4 {[%clk 0:02:21.4]} 13... exf4 {[%clk 0:01:43.3]}
14. Rxf4 {[%clk 0:02:09.2]} 14... Ne6 {[%clk 0:01:40.2]} 15. Rf1 {[%clk
0:02:04.8]} 15... c5 {[%clk 0:01:40.3]} 16. Nf5 {[%clk 0:02:02.2]} 16... g6
{[%clk 0:01:32.1]} 17. Qf3 {[%clk 0:01:57.2]} 17... Bd7 {[%clk 0:00:53.2]} 18.
Nh6+ {[%clk 0:01:52.4]} 1-0

[Event "*** Qualifier 3: Titled Tuesday 3|2 Blitz"]
[Site "Chess.com"]
[Date "2017.04.18"]
[Round "1"]
[White "Alexander_Donchenko"]
[Black "ChristopherYoo"]
[Result "1-0"]
[WhiteElo "2537"]
[BlackElo "2256"]
[TimeControl "180+2"]
[EndTime "13:04:51 PDT"]
[Termination "Alexander_Donchenko won by resignation"]

1. d4 {[%clk 0:03:01.9]} 1... Nf6 {[%clk 0:03:00.5]} 2. c4 {[%clk 0:03:02.9]}
2... g6 {[%clk 0:03:01.7]} 3. g3 {[%clk 0:03:01.4]} 3... d5 {[%clk 0:03:01.6]}
4. cxd5 {[%clk 0:03:01.5]} 4... Nxd5 {[%clk 0:03:02.7]} 5. Bg2 {[%clk
0:02:57.3]} 5... Bg7 {[%clk 0:03:03.7]} 6. Nf3 {[%clk 0:02:55.1]} 6... c5 {[%clk
0:03:00.1]} 7. dxc5 {[%clk 0:02:51.5]} 7... Qa5+ {[%clk 0:02:56.8]} 8. Nbd2
{[%clk 0:02:51.5]} 8... O-O {[%clk 0:02:19.4]} 9. O-O {[%clk 0:02:52.1]} 9...
Rd8 {[%clk 0:02:17.6]} 10. Nb3 {[%clk 0:02:50.9]} 10... Qc7 {[%clk 0:02:17]} 11.
Qc2 {[%clk 0:02:44.6]} 11... Na6 {[%clk 0:02:11.3]} 12. a3 {[%clk 0:02:39]}
12... Bg4 {[%clk 0:01:47.3]} 13. e4 {[%clk 0:02:38.3]} 13... Bxf3 {[%clk
0:01:40.5]} 14. Bxf3 {[%clk 0:02:37.7]} 14... Nf6 {[%clk 0:01:41.3]} 15. Bf4
{[%clk 0:02:36.1]} 15... e5 {[%clk 0:01:41.3]} 16. Be3 {[%clk 0:02:36.7]} 16...
Rac8 {[%clk 0:01:42]} 17. Rfd1 {[%clk 0:02:33.2]} 17... Rxd1+ {[%clk 0:01:36.3]}
18. Rxd1 {[%clk 0:02:33.5]} 18... Bf8 {[%clk 0:01:35.2]} 19. Be2 {[%clk
0:02:27.3]} 19... Nxc5 {[%clk 0:01:34.9]} 20. Nxc5 {[%clk 0:02:27.9]} 20... Bxc5
{[%clk 0:01:35.9]} 21. Bxc5 {[%clk 0:02:29.2]} 21... Kg7 {[%clk 0:01:17.5]} 22.
Rc1 {[%clk 0:02:22.6]} 22... Nd7 {[%clk 0:01:05.5]} 23. b4 {[%clk 0:02:19.3]}
23... b6 {[%clk 0:01:05.5]} 24. Bf8+ {[%clk 0:02:10.4]} 1-0

[Event "*** Qualifier 3: Titled Tuesday 3|2 Blitz"]
[Site "Chess.com"]
[Date "2017.04.18"]
[Round "1"]
[White "Gulkov_Igor"]
[Black "Cayse"]
[Result "0-1"]
[WhiteElo "2327"]
[BlackElo "2631"]
[TimeControl "180+2"]
[EndTime "13:05:08 PDT"]
[Termination "Cayse won by resignation"]

1. Nf3 {[%clk 0:03:02]} 1... Nf6 {[%clk 0:03:00.3]} 2. c4 {[%clk 0:03:02.3]}
2... e6 {[%clk 0:03:01.2]} 3. Nc3 {[%clk 0:03:03.4]} 3... d5 {[%clk 0:03:02]} 4.
d4 {[%clk 0:03:04.5]} 4... Nbd7 {[%clk 0:03:02.2]} 5. cxd5 {[%clk 0:03:04.7]}
5... exd5 {[%clk 0:03:03]} 6. Bf4 {[%clk 0:03:06.3]} 6... Nb6 {[%clk 0:02:59.5]}
7. e3 {[%clk 0:03:07.6]} 7... Bd6 {[%clk 0:02:59.1]} 8. Bxd6 {[%clk 0:03:07.2]}
8... Qxd6 {[%clk 0:02:59.5]} 9. Qc2 {[%clk 0:03:08.6]} 9... c6 {[%clk
0:02:58.2]} 10. Bd3 {[%clk 0:03:09]} 10... O-O {[%clk 0:02:57.1]} 11. h3 {[%clk
0:03:09.4]} 11... Re8 {[%clk 0:02:57.8]} 12. O-O {[%clk 0:03:10.1]} 12... Be6
{[%clk 0:02:46.6]} 13. a3 {[%clk 0:03:08.5]} 13... a5 {[%clk 0:02:46.2]} 14.
Rac1 {[%clk 0:03:04.3]} 14... Qe7 {[%clk 0:02:45.5]} 15. Na4 {[%clk 0:02:56.6]}
15... Nxa4 {[%clk 0:02:41]} 16. Qxa4 {[%clk 0:02:57.4]} 16... Red8 {[%clk
0:02:41.2]} 17. Qc2 {[%clk 0:02:56.8]} 17... g6 {[%clk 0:02:39.1]} 18. Qc5
{[%clk 0:02:53.4]} 18... Qxc5 {[%clk 0:02:28.1]} 19. Rxc5 {[%clk 0:02:53.2]}
19... Ne8 {[%clk 0:02:29.5]} 20. Rfc1 {[%clk 0:02:47.9]} 20... Nd6 {[%clk
0:02:30.7]} 21. Ne5 {[%clk 0:02:42.4]} 21... Kg7 {[%clk 0:02:30.1]} 22. h4
{[%clk 0:02:39.2]} 22... f6 {[%clk 0:02:28.1]} 23. Nf3 {[%clk 0:02:39.7]} 23...
Bf5 {[%clk 0:02:29.5]} 24. Bxf5 {[%clk 0:02:31.6]} 24... Nxf5 {[%clk 0:02:30.9]}
25. R5c2 {[%clk 0:02:29.7]} 25... a4 {[%clk 0:02:30.3]} 26. g3 {[%clk
0:02:27.1]} 26... Nd6 {[%clk 0:02:29.4]} 27. Kg2 {[%clk 0:02:24]} 27... Ra6
{[%clk 0:02:29.9]} 28. Nd2 {[%clk 0:02:16.9]} 28... Rb6 {[%clk 0:02:29.9]} 29.
Rb1 {[%clk 0:02:17.6]} 29... Ra8 {[%clk 0:02:29.9]} 30. Kf3 {[%clk 0:02:17]}
30... Kf7 {[%clk 0:02:29.8]} 31. Ke2 {[%clk 0:02:17.6]} 31... Ke6 {[%clk
0:02:28.6]} 32. Kd3 {[%clk 0:02:18.6]} 32... Ra5 {[%clk 0:02:29.1]} 33. f3
{[%clk 0:02:18.3]} 33... Nf5 {[%clk 0:02:27.9]} 34. Nf1 {[%clk 0:02:09.1]} 34...
Rb3+ {[%clk 0:02:26]} 35. Ke2 {[%clk 0:02:10.1]} 35... Rab5 {[%clk 0:02:26.4]}
36. Kf2 {[%clk 0:02:10.2]} 36... Rxa3 {[%clk 0:02:26.1]} 37. g4 {[%clk
0:01:56.6]} 37... Nd6 {[%clk 0:02:13]} 38. Nd2 {[%clk 0:01:56.7]} 38... Ra2
{[%clk 0:02:14.1]} 39. e4 {[%clk 0:01:53.5]} 39... a3 {[%clk 0:02:05.6]} 0-1

[Event "*** Qualifier 3: Titled Tuesday 3|2 Blitz"]
[Site "Chess.com"]
[Date "2017.04.18"]
[Round "1"]
[White "Infernal_XaM"]
[Black "RaphaeI"]
[Result "1-0"]
[WhiteElo "2719"]
[BlackElo "2377"]
[TimeControl "180+2"]
[EndTime "13:05:35 PDT"]
[Termination "Infernal_XaM won on time"]

1. Nf3 {[%clk 0:03:02]} 1... Nf6 {[%clk 0:02:59.1]} 2. b3 {[%clk 0:03:02.8]}
2... d6 {[%clk 0:02:45.4]} 3. Bb2 {[%clk 0:03:04.7]} 3... e5 {[%clk 0:02:46.1]}
4. e3 {[%clk 0:03:05.1]} 4... g6 {[%clk 0:02:43.7]} 5. d4 {[%clk 0:03:05.7]}
5... exd4 {[%clk 0:02:44.8]} 6. Nxd4 {[%clk 0:03:06.8]} 6... Bg7 {[%clk
0:02:46.4]} 7. Be2 {[%clk 0:03:06.7]} 7... O-O {[%clk 0:02:47.7]} 8. O-O {[%clk
0:03:08.2]} 8... Nc6 {[%clk 0:02:34.6]} 9. Nxc6 {[%clk 0:03:07.4]} 9... bxc6
{[%clk 0:02:36.5]} 10. c4 {[%clk 0:03:08.8]} 10... a5 {[%clk 0:02:22.8]} 11. Nc3
{[%clk 0:03:07.6]} 11... Ne4 {[%clk 0:02:19.9]} 12. Qc1 {[%clk 0:03:07.4]} 12...
Nxc3 {[%clk 0:02:14.7]} 13. Bxc3 {[%clk 0:03:09.3]} 13... Bxc3 {[%clk 0:02:16]}
14. Qxc3 {[%clk 0:03:10.4]} 14... c5 {[%clk 0:02:02.6]} 15. a3 {[%clk 0:03:11]}
15... Bb7 {[%clk 0:02:00.3]} 16. f3 {[%clk 0:03:10.4]} 16... Re8 {[%clk
0:02:00.8]} 17. e4 {[%clk 0:03:11]} 17... f5 {[%clk 0:01:56.5]} 18. Bd3 {[%clk
0:03:08.2]} 18... fxe4 {[%clk 0:01:35.7]} 19. fxe4 {[%clk 0:03:05.9]} 19... Bxe4
{[%clk 0:01:33.1]} 20. Bxe4 {[%clk 0:03:00.5]} 20... Rxe4 {[%clk 0:01:35]} 21.
Qd3 {[%clk 0:03:01.9]} 21... Re5 {[%clk 0:01:36]} 22. Rf2 {[%clk 0:02:58.6]}
22... Qd7 {[%clk 0:01:21.3]} 23. Raf1 {[%clk 0:02:56.4]} 23... Rae8 {[%clk
0:01:22.8]} 24. Qc3 {[%clk 0:02:55.9]} 24... a4 {[%clk 0:00:42.5]} 25. bxa4
{[%clk 0:02:50.1]} 25... Qxa4 {[%clk 0:00:40.7]} 26. Rf7 {[%clk 0:02:50.6]}
26... R8e7 {[%clk 0:00:31.5]} 27. Qf3 {[%clk 0:02:38.2]} 27... Qd7 {[%clk
0:00:15.9]} 28. Rg7+ {[%clk 0:02:38.4]} 1-0

[Event "*** Qualifier 3: Titled Tuesday 3|2 Blitz"]
[Site "Chess.com"]
[Date "2017.04.18"]
[Round "1"]
[White "Rogue_King"]
[Black "GulamaliRises"]
[Result "0-1"]
[WhiteElo "2123"]
[BlackElo "2451"]
[TimeControl "180+2"]
[EndTime "13:06:09 PDT"]
[Termination "GulamaliRises won by resignation"]

1. d4 {[%clk 0:03:02]} 1... c5 {[%clk 0:03:01]} 2. d5 {[%clk 0:03:02.7]} 2... e6
{[%clk 0:03:02.5]} 3. Nc3 {[%clk 0:03:01.7]} 3... d6 {[%clk 0:03:02.4]} 4. e4
{[%clk 0:03:02.4]} 4... a6 {[%clk 0:03:03.3]} 5. a4 {[%clk 0:02:58.5]} 5... Nf6
{[%clk 0:03:03.5]} 6. Nf3 {[%clk 0:02:54.8]} 6... exd5 {[%clk 0:03:03.9]} 7.
exd5 {[%clk 0:02:53.5]} 7... g6 {[%clk 0:03:05.1]} 8. Bg5 {[%clk 0:02:47.9]}
8... Bg7 {[%clk 0:03:04.7]} 9. Be2 {[%clk 0:02:41.9]} 9... O-O {[%clk
0:03:04.5]} 10. Qd2 {[%clk 0:02:40.9]} 10... Re8 {[%clk 0:03:03.1]} 11. h4
{[%clk 0:02:40.6]} 11... Bg4 {[%clk 0:03:03.9]} 12. O-O-O {[%clk 0:02:35.5]}
12... Nbd7 {[%clk 0:03:01.4]} 13. h5 {[%clk 0:02:36.1]} 13... Bxh5 {[%clk
0:03:02]} 14. Rxh5 {[%clk 0:02:37.1]} 14... gxh5 {[%clk 0:03:03.1]} 15. Rh1
{[%clk 0:02:33.6]} 15... b5 {[%clk 0:02:54.6]} 16. Nh4 {[%clk 0:01:43.1]} 16...
b4 {[%clk 0:02:48.9]} 17. Nd1 {[%clk 0:01:18.7]} 17... Ne4 {[%clk 0:02:49.5]}
18. Bxd8 {[%clk 0:01:14.1]} 18... Nxd2 {[%clk 0:02:50.2]} 19. Kxd2 {[%clk
0:01:13.5]} 19... Raxd8 {[%clk 0:02:49.9]} 20. Nf5 {[%clk 0:01:08.2]} 20... Re5
{[%clk 0:02:46.9]} 21. Nde3 {[%clk 0:01:04.8]} 21... Nf6 {[%clk 0:02:43.1]} 22.
Bc4 {[%clk 0:00:58.2]} 22... a5 {[%clk 0:02:28.8]} 23. b3 {[%clk 0:00:46.3]}
23... Bf8 {[%clk 0:02:27]} 24. Kd3 {[%clk 0:00:38.7]} 24... Ne4 {[%clk
0:02:27.4]} 25. Ke2 {[%clk 0:00:32.8]} 25... Nf6 {[%clk 0:02:17.5]} 26. Kd3
{[%clk 0:00:24.2]} 26... Rde8 {[%clk 0:02:15.6]} 27. Rh3 {[%clk 0:00:21.9]}
27... Re4 {[%clk 0:02:14.4]} 28. Rf3 {[%clk 0:00:22.7]} 28... Ng4 {[%clk
0:02:03]} 29. Bb5 {[%clk 0:00:22.1]} 29... R8e5 {[%clk 0:01:56.3]} 30. Nxg4
{[%clk 0:00:21.9]} 30... hxg4 {[%clk 0:01:56.8]} 31. Ng3 {[%clk 0:00:19.9]}
31... gxf3 {[%clk 0:01:57.4]} 32. Nxe4 {[%clk 0:00:21.1]} 32... fxg2 {[%clk
0:01:58.9]} 33. Nf6+ {[%clk 0:00:21.4]} 33... Kg7 {[%clk 0:01:58.8]} 34. Ne8+
{[%clk 0:00:22.2]} 34... Rxe8 {[%clk 0:01:59.3]} 35. Bxe8 {[%clk 0:00:24.1]} 0-1

[Event "*** Qualifier 3: Titled Tuesday 3|2 Blitz"]
[Site "Chess.com"]
[Date "2017.04.18"]
[Round "1"]
[White "PowerThinking2650"]
[Black "Rodalquilar"]
[Result "0-1"]
[WhiteElo "2227"]
[BlackElo "2518"]
[TimeControl "180+2"]
[EndTime "13:06:13 PDT"]
[Termination "Rodalquilar won by resignation"]

1. e4 {[%clk 0:03:01.7]} 1... e5 {[%clk 0:02:57.7]} 2. Nf3 {[%clk 0:03:01.9]}
2... Nc6 {[%clk 0:02:58.6]} 3. Nc3 {[%clk 0:03:03.5]} 3... Nf6 {[%clk
0:02:59.2]} 4. d4 {[%clk 0:03:05.1]} 4... exd4 {[%clk 0:03:01.1]} 5. Nxd4 {[%clk
0:03:06.3]} 5... Bb4 {[%clk 0:03:02.6]} 6. Nxc6 {[%clk 0:03:07.3]} 6... bxc6
{[%clk 0:03:03.3]} 7. Bd3 {[%clk 0:03:08.7]} 7... O-O {[%clk 0:03:04.2]} 8. O-O
{[%clk 0:03:09.7]} 8... d5 {[%clk 0:03:05.5]} 9. exd5 {[%clk 0:03:10.5]} 9...
cxd5 {[%clk 0:03:07.4]} 10. Bg5 {[%clk 0:03:11.3]} 10... c6 {[%clk 0:03:08.8]}
11. Qf3 {[%clk 0:03:12.2]} 11... Bd6 {[%clk 0:03:10]} 12. Bxf6 {[%clk
0:03:12.7]} 12... Qxf6 {[%clk 0:03:10.4]} 13. Qxf6 {[%clk 0:03:13.8]} 13... gxf6
{[%clk 0:03:12.3]} 14. Ne2 {[%clk 0:03:14.6]} 14... c5 {[%clk 0:03:06.8]} 15. c4
{[%clk 0:03:07.7]} 15... d4 {[%clk 0:02:49.5]} 16. Ng3 {[%clk 0:03:06.9]} 16...
Rb8 {[%clk 0:02:43.5]} 17. b3 {[%clk 0:03:04.7]} 17... a5 {[%clk 0:02:44.5]} 18.
Nf5 {[%clk 0:02:44.7]} 18... Bf4 {[%clk 0:02:33.5]} 19. g3 {[%clk 0:02:41.5]}
19... Bd2 {[%clk 0:02:34.5]} 20. Rad1 {[%clk 0:02:30.1]} 20... Bc3 {[%clk
0:02:34.8]} 21. Be4 {[%clk 0:01:38.8]} 21... Be6 {[%clk 0:02:18.1]} 22. Rd3
{[%clk 0:01:29.2]} 22... Rfe8 {[%clk 0:02:13.5]} 23. Rf3 {[%clk 0:01:20.6]}
23... Bxc4 {[%clk 0:01:52.8]} 24. Nd6 {[%clk 0:00:55.8]} 24... Bxf1 {[%clk
0:01:52.4]} 25. Rxf6 {[%clk 0:00:38.7]} 25... d3 {[%clk 0:01:24.5]} 26. Bd5
{[%clk 0:00:28.3]} 26... Bxf6 {[%clk 0:01:24.1]} 0-1

[Event "*** Qualifier 3: Titled Tuesday 3|2 Blitz"]
[Site "Chess.com"]
[Date "2017.04.18"]
[Round "1"]
[White "FearNoEvil12"]
[Black "oskariot"]
[Result "0-1"]
[WhiteElo "2111"]
[BlackElo "2448"]
[TimeControl "180+2"]
[EndTime "13:06:33 PDT"]
[Termination "oskariot won by resignation"]

1. e4 {[%clk 0:02:58.5]} 1... c5 {[%clk 0:03:00.6]} 2. Nc3 {[%clk 0:02:58.5]}
2... d6 {[%clk 0:03:02.1]} 3. f4 {[%clk 0:03:00]} 3... e6 {[%clk 0:03:02.9]} 4.
Bc4 {[%clk 0:03:01.2]} 4... a6 {[%clk 0:03:04.4]} 5. a4 {[%clk 0:03:00.6]} 5...
Nc6 {[%clk 0:03:04.4]} 6. Nf3 {[%clk 0:03:02]} 6... Nb4 {[%clk 0:03:05.9]} 7. d3
{[%clk 0:03:02.3]} 7... d5 {[%clk 0:03:06.9]} 8. Bb3 {[%clk 0:03:02.5]} 8... Nf6
{[%clk 0:03:03.3]} 9. Qe2 {[%clk 0:02:59.9]} 9... dxe4 {[%clk 0:02:25]} 10. dxe4
{[%clk 0:03:00.3]} 10... Be7 {[%clk 0:02:26.3]} 11. O-O {[%clk 0:02:59.7]} 11...
b6 {[%clk 0:02:22.6]} 12. Be3 {[%clk 0:02:56.3]} 12... Bb7 {[%clk 0:02:23.6]}
13. Rad1 {[%clk 0:02:55.3]} 13... Qc7 {[%clk 0:02:24.5]} 14. e5 {[%clk
0:02:54.1]} 14... Nfd5 {[%clk 0:02:24.5]} 15. Ne4 {[%clk 0:02:45.1]} 15... O-O
{[%clk 0:02:13.3]} 16. Bc1 {[%clk 0:02:39.9]} 16... Rfd8 {[%clk 0:01:51.4]} 17.
c3 {[%clk 0:02:40.2]} 17... Nc6 {[%clk 0:01:52.6]} 18. Bc2 {[%clk 0:02:39.9]}
18... b5 {[%clk 0:01:30.1]} 19. axb5 {[%clk 0:02:36.6]} 19... axb5 {[%clk
0:01:32]} 20. Qxb5 {[%clk 0:02:36.9]} 20... Ba6 {[%clk 0:01:30.9]} 21. Qb3
{[%clk 0:02:24.8]} 21... Rdb8 {[%clk 0:01:29.9]} 22. Qxb8+ {[%clk 0:02:15.8]}
22... Rxb8 {[%clk 0:01:30.3]} 23. Rfe1 {[%clk 0:02:17.4]} 23... Bc4 {[%clk
0:01:28.2]} 24. h3 {[%clk 0:02:16.9]} 24... Bb3 {[%clk 0:01:29.3]} 25. Bxb3
{[%clk 0:02:16.5]} 25... Rxb3 {[%clk 0:01:31.2]} 26. Kh1 {[%clk 0:02:16.9]}
26... h6 {[%clk 0:01:30.7]} 27. Nfd2 {[%clk 0:02:15.4]} 27... Rb8 {[%clk
0:01:31.4]} 28. Nc4 {[%clk 0:02:16.3]} 28... Na5 {[%clk 0:01:31.7]} 29. Ncd6
{[%clk 0:02:17]} 29... Nb3 {[%clk 0:01:32]} 30. Re2 {[%clk 0:02:08.6]} 30...
Nxc1 {[%clk 0:01:28.8]} 31. Rxc1 {[%clk 0:02:09.3]} 31... f5 {[%clk 0:01:29.2]}
32. exf6 {[%clk 0:01:58.2]} 32... Bxd6 {[%clk 0:01:27]} 33. fxg7 {[%clk
0:01:57.8]} 33... Kxg7 {[%clk 0:01:21.5]} 34. Ng3 {[%clk 0:01:49.9]} 34... Nxf4
{[%clk 0:01:18.9]} 35. Re4 {[%clk 0:01:48]} 35... Rf8 {[%clk 0:01:15.5]} 36. Rd1
{[%clk 0:01:41.2]} 36... Kh8 {[%clk 0:01:08.8]} 37. Nf1 {[%clk 0:01:35.8]} 37...
Qc6 {[%clk 0:01:07.1]} 38. Rde1 {[%clk 0:01:32.9]} 38... Nd3 {[%clk 0:01:07.6]}
0-1